Cogmind - Beta 16 *** ADVENTURER MODE // 2025.11.23 @ 21:16:55 Player: MONOHALLS Result: Destroyed by G-47 Trooper with Particle Gun Performance ------------- Evolutions (1) 500 Regions Visited (2) 400 Robots Destroyed (11) 55 Value Destroyed (297) 297 Prototype IDs (0) 0 Alien Tech Used (0) 0 Bonus (0) 0 TOTAL SCORE: 1252 Bonus ------- None Cogmind --------- Core Integrity 0/400 Matter 277/300 Energy 99/100 System Corruption 1% Temperature Cool (9) Movement Core (200) Ox3 Location -9/Materials Parts ------- > --- POWER (2) -------- (None) > --- PROPULSION (2) --- (None) > --- UTILITY (2) ------ Medium Storage Unit > --- WEAPON (3) ------- (None) > --- INVENTORY (10) --- (None) Peak State ------------ > --- POWER ------------ Light Ion Engine Deuterium Engine > --- PROPULSION ------- Aluminum Leg Aluminum Leg > --- UTILITY ---------- Heat Sink Medium Storage Unit > --- WEAPON ----------- Assault Rifle Hammer > --- INVENTORY -------- (None) [Rating: 10] Favorites ----------- Power Light Ion Engine Engine Light Ion Engine Propulsion Aluminum Leg Leg Aluminum Leg Utility Medium Storage Unit Device Heat Sink Storage Medium Storage Unit Protection Light Armor Plating Weapon Assault Rifle Ballistic Gun Assault Rifle Launcher Grenade Launcher Impact Weapon Hammer Build | -11 -10 -9 ------- Run | Yrd Mat Mat Slots Evolved 2 | . . 2 Power 1 | . . 1 Propulsion . | . . . Utility . | . . . Weapon 1 | . . 1 Parts Attached 13 | 6 6 1 Power 2 | 1 . 1 Engine 2 | 1 . 1 Core . | . . . Reactor . | . . . Propulsion 3 | 2 1 . Treads . | . . . Leg 3 | 2 1 . Wheel . | . . . Hover . | . . . Flight . | . . . Utility 4 | 1 3 . Device 1 | . 1 . Storage 2 | 1 1 . Processor . | . . . Hackware . | . . . Protection 1 | . 1 . Artifact . | . . . Weapon 4 | 2 2 . Energy Gun . | . . . Energy Cannon . | . . . Ballistic Gun 2 | 2 . . Ballistic Cannon . | . . . Launcher 1 | . 1 . Special Weapon . | . . . Impact Weapon 1 | . 1 . Slashing Weapon . | . . . Piercing Weapon . | . . . Special Melee Weapon . | . . . Unidentified Prototypes . | . . . Parts Lost 7 | . . 7 Power 2 | . . 2 Propulsion 2 | . . 2 Utility 1 | . . 1 Weapon 2 | . . 2 Highest Loss Streak 7 | . . 7 To Critical Strikes . | . . . Average Backups . | . . . Power . | . . . Propulsion . | . . . Utility . | . . . Weapon . | . . . Tool/Special . | . . . Unused Backups 1 | 1 . . Power 1 | 1 . . Propulsion . | . . . Utility . | . . . Weapon . | . . . Tool/Special . | . . . Average Slot Usage (%) 79 | . 87 71 Engine 14 | . 14 15 Leg 22 | . 27 16 Device 6 | . 2 10 Storage 12 | . 14 11 Ballistic Gun 12 | . 17 7 Launcher 3 | . 6 . Impact Weapon 7 | . 3 10 Peak Build Rating 10 | 6 7 10 Average Rating 6 | 2 6 8 On Entrance 4 | . 6 7 Avg Prop Armor Cover (%) . | . . . Naked Turns . | . . . Heaviest Build 27 | 11 20 27 Greatest Support 20 | 20 20 20 Greatest Overweight (x) 7 | . 1 7 Average Overweight (x) . | . . 1 Largest Inventory Capacity 10 | 8 10 10 Average Capacity 8 | 5 8 10 Most Carried 2 | 2 1 . Average Carried . | . . . Final Capacity 10 | 8 10 10 Final Carried . | . . . Class Distribution -------------------- 100% | Mutant Dominant Class ---------------- Mutant | -10/Materials Mutant | -9/Materials Resources | -11 -10 -9 ----------- Run | Yrd Mat Mat Matter Collected 457 | 180 143 134 Remotely . | . . . Salvage Created 334 | . 170 164 Parts 12 | . 6 6 Haulers Intercepted . | . . . Recyclers Shooed . | . . . Parts Field Recycled . | . . . Retrieved Matter . | . . . Parts Self-Destructed . | . . . Prevented . | . . . Parts Restored . | . . . Kills | -11 -10 -9 ------- Run | Yrd Mat Mat Combat Hostiles Destroyed 6 | . 4 2 Guns 2 | . 1 1 AOE 3 | . 3 . Classes Destroyed 5 | . 3 2 Builder 1 | . . 1 Recycler 1 | . 1 . Watcher 3 | . 1 2 Grunt 5 | . 4 1 Sentry 1 | . . 1 Best Kill Streak 6 | . 6 3 Combat Bots Only 4 | . 4 1 Max Kills in Single Turn 2 | . 2 1 Gunslinging . | . . . Exploded 1 | . 1 . Melee . | . . . Uniques/NPCs Destroyed . | . . . Combat | -11 -10 -9 -------- Run | Yrd Mat Mat Hostile Shots Fired 145 | . 22 123 Missed 36 | . 5 31 Hits 109 | . 17 92 Projectile 109 | . 17 92 Critical Strikes 7 | . 1 6 Damage Taken 1211 | . 214 997 Core 448 | . 38 410 Absorbed by Shields . | . . . Ignored by Resistances 345 | . 63 282 Core Remaining (%) 92 | 100 84 . Volleys Fired 26 | . 11 15 Largest 2 | . 2 1 Hottest 50 | . 50 20 Shots Fired 37 | . 22 15 Gun 28 | . 13 15 Cannon . | . . . Launcher 9 | . 9 . Special . | . . . Kinetic 28 | . 13 15 Thermal . | . . . Explosive 9 | . 9 . Electromagnetic . | . . . Robot Hit Streak 12 | . 10 12 Robot Miss Streak 5 | . 1 5 Penetration Max . | . . . Secondary Targets . | . . . Shots Hit Robots 27 | . 12 15 Core Hits 16 | . 10 6 Critical Kills 1 | . . 1 Critical Parts Destroyed 2 | . . 2 Critical Strikes 3 | . . 3 Smash 3 | . . 3 Melee Attacks 7 | . . 7 Impact 7 | . . 7 Slashing . | . . . Piercing . | . . . Sneak Attacks 2 | . . 2 Combat Hostiles . | . . . Follow-up Attacks . | . . . Damage Inflicted 779 | . 472 307 Guns 211 | . 95 116 Cannons . | . . . Explosions 377 | . 377 . Melee 191 | . . 191 Ramming . | . . . Kinetic 211 | . 95 116 Thermal . | . . . Explosive 377 | . 377 . Electromagnetic . | . . . Impact 191 | . . 191 Slashing . | . . . Piercing . | . . . Highest Corruption 1 | . . 1 Average Corruption 1 | . . 1 Corruption Purged . | . . . Corruption Blocked . | . . . Overload Shots . | . . . Overflow Damage 87 | . 15 72 Projectiles . | . . . Explosions 15 | . 15 . Melee 72 | . . 72 Knockbacks 2 | . . 2 Impact 2 | . . 2 Kinetic . | . . . Secondary . | . . . Self-Inflicted Damage 62 | . 62 . Shots 4 | . 4 . Rammed . | . . . Targets Rammed . | . . . Kicked . | . . . Crushed . | . . . Highest Temperature 25 | . 25 10 Average Temperature 8 | . 8 8 Received Heat Transfer 579 | . 129 450 Siege Activations . | . . . Martial Activations . | . . . Shielding Activations . | . . . Robots Disrupted . | . . . Combat Hostiles . | . . . Robots Corrupted 2 | . . 2 Combat Hostiles 1 | . . 1 Parts Fried 6 | . . 6 Impact Corruptions 4 | . . 4 Robots Melted . | . . . Combat Hostiles . | . . . Parts Melted . | . . . Heat Transferred . | . . . Parts Sabotaged . | . . . Parts Stolen . | . . . Parts Stripped . | . . . Power Chain Reactions . | . . . Alert | -11 -10 -9 ------- Run | Yrd Mat Mat Maximum Alert Level . | . . . Low Security (%) 100 | 100 100 100 Level 1 . | . . . Level 2 . | . . . Level 3 . | . . . Level 4 . | . . . Level 5 . | . . . High Security . | . . . Max Security . | . . . Peak Influence 137 | . 137 30 Initial 28 | . . 28 Average 30 | . 62 11 Influence Increases 228 | . 159 69 Destroy 0b10 Robot/C 120 | . 80 40 Destroy 0b10 Robot/NC 25 | . 10 15 Destroy Leader 36 | . 22 14 Successful Hack 2 | . 2 . Disable Machine 9 | . 9 . Destroy Structure 36 | . 36 . Influence Decreases 228 | . 80 148 Entered New Map 51 | . . 51 Time Decay 165 | . 80 85 Lost Part 12 | . . 12 Squads Dispatched 1 | . 1 . Investigation 1 | . 1 . Extermination . | . . . Reinforcement . | . . . Assault . | . . . Garrison . | . . . Intercept . | . . . Searches Triggered . | . . . Construction Impeded . | . . . Haulers Reinforced . | . . . Active Scanning Responses . | . . . Cargo Convoy Interrupts . | . . . Stealth | -11 -10 -9 --------- Run | Yrd Mat Mat Distress Signals 4 | . 1 3 Communications Jammed . | . . . Distress Signals . | . . . Times Spotted 29 | . 9 20 Peak Tracking Total 15 | . 4 15 Tactical Retreats . | . . . Traps | -11 -10 -9 ------- Run | Yrd Mat Mat Traps Triggered 1 | . . 1 Indirectly . | . . . Trap Hack Attempts . | . . . Triggered . | . . . Disarmed . | . . . Reprogrammed . | . . . Reused . | . . . Traps Extracted . | . . . Installed . | . . . Triggered . | . . . Machines | -11 -10 -9 ---------- Run | Yrd Mat Mat Machines Disabled 1 | . 1 . Max in Single Turn 1 | . 1 . Machines Repaired . | . . . Machines Dismantled . | . . . Machines Sabotaged . | . . . Overloaded Fab Kills . | . . . Hacking | -11 -10 -9 --------- Run | Yrd Mat Mat Machines Accessed 3 | . 3 . Terminals 1 | . 1 . Fabricators . | . . . Repair Stations 1 | . 1 . Recycling Units 1 | . 1 . Scanalyzers . | . . . Garrison Access . | . . . Total Hacks 10 | . 10 . Successful 8 | . 8 . Failed 2 | . 2 . Catastrophic . | . . . Database Lockouts . | . . . Manual . | . . . Terminals 4 | . 4 . Fabricators . | . . . Repair Stations 2 | . 2 . Recycling Units 4 | . 4 . Scanalyzers . | . . . Garrison Access . | . . . Terminal Hacks 4 | . 4 . Record 3 | . 3 . Alert Level 1 | . 1 . Fabricator Hacks . | . . . Repair Station Hacks 1 | . 1 . Scan Component 1 | . 1 . Recycling Unit Hacks 3 | . 3 . Recycle Component 1 | . 1 . Process 1 | . 1 . Report Inventory 1 | . 1 . Scanalyzer . | . . . Garrison Access Hacks . | . . . Unauthorized Hacks . | . . . Terminals . | . . . Fabricators . | . . . Repair Stations . | . . . Recycling Units . | . . . Scanalyzers . | . . . Garrison Access . | . . . Data Cores Recovered . | . . . Used . | . . . Hacking Detections 2 | . 2 . Full Trace Events 2 | . 2 . Feedback Events . | . . . Feedback Blocked . | . . . Robot Schematics Acquired . | . . . Robots Built . | . . . Authchips . | . . . Time . | . . . Total Robot Build Rating . | . . . Part Schematics Acquired . | . . . Parts Built . | . . . Authchips . | . . . Time . | . . . Total Part Build Rating . | . . . Part Studies Acquired . | . . . Parts Repaired . | . . . Time . | . . . Parts Recycled 1 | . 1 . Recycled Matter 40 | . 40 . Retrieved Matter . | . . . Retrieved Components . | . . . Parts Scanalyzed . | . . . Part Schematics Acquired . | . . . Parts Damaged . | . . . Bothacking | -11 -10 -9 ------------ Run | Yrd Mat Mat Used RIF Installer . | . . . Robots Hacked . | . . . Non-combat . | . . . Combat . | . . . Robot Hacks Applied . | . . . Relay Couplers Released . | . . . Fabnet Peak Effective % . | . . . Robots Rewired . | . . . Allies Hacked . | . . . Hacks Repelled . | . . . Allies | -11 -10 -9 -------- Run | Yrd Mat Mat Total Allies . | . . . Largest Group . | . . . Highest-Rated Group . | . . . Highest-Rated Ally . | . . . Total Orders . | . . . Ally Attacks . | . . . Total Damage . | . . . Kills . | . . . Allies Corrupted . | . . . Allies Melted . | . . . Intel | -11 -10 -9 ------- Run | Yrd Mat Mat Active Infowar (turns) . | . . . Robot Analysis Total . | . . . Derelict Logs Recovered . | . . . Drone Launches . | . . . Drone Recoveries . | . . . Exploration | -11 -10 -9 ------------- Run | Yrd Mat Mat Turns Passed 550 | 95 223 232 Spaces Moved 319 | 75 144 100 Core 46 | 31 . 15 Treads . | . . . Legs 273 | 44 144 85 Wheels . | . . . Hover . | . . . Flight . | . . . Fastest Speed 50 | 50 120 120 Average Speed 133 | 91 120 182 Slowest Speed 400 | 120 190 400 Overloaded Moves . | . . . Propulsion Burnouts . | . . . Robots Hopped . | . . . Potential Cave-ins . | . . . Cave-ins Triggered . | . . . Exploration Rate (%) 16 | 4 34 11 Regions Visited 2 Branch Regions . Pre-discovered Areas . | . . . Known Exits Taken . | . . . Unknown Exits Taken 2 | 1 1 . Scrap Searched . | . . . Spaces Dug . | . . . Terrain Destroyed 33 | . 33 . Melee . | . . . Projectile . | . . . AOE 33 | . 33 . Terrain Rammed . | . . . Walls Destroyed . | . . . Machines Disabled . | . . . Actions | -11 -10 -9 --------- Run | Yrd Mat Mat Total 397 | 102 172 123 Wait 14 | 14 . . Move 317 | 74 143 100 Hop . | . . . Pick Up 13 | 7 6 . Fast Attach 1 | . . 1 Attach 11 | 6 5 . Detach . | . . . Swap 2 | . 2 . Drop 6 | 1 5 . Fire 26 | . 11 15 Melee 7 | . . 7 Ram . | . . . Kick . | . . . Crush . | . . . Escape Stasis . | . . . Rewire . | . . . Trap . | . . . Miscellaneous . | . . . Route ------- -11/Scrapyard -10/Materials -9/Materials History --------- Turn | Location | Event 60 | -11/Scrapyard | Discovered new exit (range 16) 96 | -11/Scrapyard | Entered Materials 300 | -10/Materials | Build established: Mutant 315 | -10/Materials | Discovered new exit (range 3) 319 | -10/Materials | Entered another Materials area 319 | -9/Materials | Evolved 2 slots: Power x1, Weapon x1 539 | -9/Materials | Core integrity fell below 50% 549 | -9/Materials | Core integrity fell below 20% 551 | -9/Materials | Destroyed by G-47 Trooper with Particle Gun Last Messages --------------- 00502_ R-06 Scavenger collects Hover Unit. 00504_ Y-45 Defender misfires. 00509_ Aluminum Leg destroyed. 00509_ Y-45 Defender suffers critical hit (Smash). 00509_ Destroyed Lgt. Treads. 00509_ Y-45 Defender system corrupted by crushing effect. 00510_ Y-45 Defender system terminally corrupted. 00510_ Lgt. Armor Plating fried. 00510_ Heat Sink fried. 00512_ Acquired 50 matter. 00515_ Critical hit (Burn: +37). 00522_ Atomic Centrifuge disabled. 00525_ Deuterium Engine destroyed. 00539_ Heat Sink destroyed. 00542_ Critical hit (Burn: +37). 00546_ Hammer destroyed. 00550_ S-10 Pest destroyed. Map ----- +----------------------------------------------------+ | ????????????# #??? ?# #??????????????? | | ??????###########+######"### ###########+#### | | ??????# # | | ??????# # | | % # | | ?#################### ########################## | | ??????? # #????????????????????????? | | ??????? " #????????????????????????? | | ????????????""" " #### ##??????????????????? | | ????????????"""""" # / #????????????? | | ???????????"" """ ### "T"??????????????? | | ??????? " "#???????????????????????? | | ??????????############ ###???????????????????????? | | ?????????????????#####/####??????????????????????? | | ?????????????????# #??????????????????????? | | ?????????????????# """ #??????????????????????? | | ?????????????????# "" #??????????????????????? | | ?????????????????# """ #??????????????????????? | | ?????????????????# #??????????????????????? | | ?????????????????# """ ###????????????????????? | | ?????????????????# """ + ?????????????????????? | | ?????????????????# """ #??????????????????????? | | ?????????????????# #??????????????????????? | | ?????????????????#####Y####??????????????????????? | | ??????????????###### s #########???????????????? | | ??????? g @ ????????? | | ??????? a r s ##???????????????? | | ??????? [ #????????????????? | | ????????+########### gg########????????????????? | | ???????????????????##* g##???????????????????????? | | ????????????????????#%= #????????????????????????? | | ????????????????????#=gg#????????????????????????? | | ????????????????????#s #????????????????????????? | | ????????????????????# Y #????????????????????????? | | ????????????????????# #????????????????????????? | | ????????????????????#Y #????????????????????????? | | ???????????????????? ????????????????????????? | | ???????????????????? ????????????????????????? | | ??????????????????? ????????????????????????? | | ???????????????????? ????????????????????????? | | ???????????????????? ????????????????????????? | | ?????????????????????????????????????????????????? | | ?????????????????????????????????????????????????? | | ?????????????????????????????????????????????????? | | ?????????????????????????????????????????????????? | | ?????????????????????????????????????????????????? | | ?????????????????????????????????????????????????? | | ?????????????????????????????????????????????????? | | ?????????????????????????????????????????????????? | | ?????????????????????????????????????????????????? | +----------------------------------------------------+ Best States ------------- Heat Dissipation 38 Energy Generation 19 Energy Capacity 300 Matter Stores 277 Matter Capacity 300 Sight Range 16 Terrain Scan Density 10 Armor Coverage 150 Resistance: KI 20 Resistance: TH 20 Resistance: EX 20 Resistance: EM 20 Resistance: I 20 Resistance: S 20 Resistance: P 20 Evasion (%) 55 Offensive Hacking 10 Item Schematics ----------------- None Robot Schematics ------------------ None Fabricated ------------ Nothing Repaired ---------- Nothing Studied --------- None Alien Tech Used ----------------- None Achievements -------------- DATA ERROR: Steam Global Achievement% Organ Harvest Overwhelming Storm Trooper Challenges ------------ None Game ------ Seed AlphaNodeScrap Manual? 0 Play Time 00:17:44 Cumulative 0.7 hours Start 2025.11.21 @ 17:16:10 End 2025.11.23 @ 21:16:55 Sessions 1 Manual Loads 0 Difficulty Adventurer Special Mode None Game No. 4 Rogue 0 Adventurer 4 Explorer 0 Win Type - Total 0 Types 0/0/0/0/0/0/0/0/0/0 Lore% 0 Gallery% 4 Achievement% 3 Wizard Run 0 Options --------- Layout 1 ASCII 0 Keyboard 0 Movement Mouse Keybinds 0 Fullscreen 2 Font 32/SmallcapsGlow Map View 50x35 Zoom Use 75% Tactical HUD 1 Map Filters NONE Filters NONE Steam 1 RUN: 5c179185-a77e-4743-8729-34b5d172b61f